Cogmind - Beta 13 @@@ ROGUE MODE // 2024.04.11 @ 13:56:50 Player: Errormaker Result: Destroyed by G-47 Trooper with Particle Gun Performance ------------- Evolutions (2) 1000 Regions Visited (5) 1000 Robots Destroyed (33) 165 Value Destroyed (1185) 1185 Prototype IDs (23) 460 Alien Tech Used (0) 0 Bonus (300) 300 TOTAL SCORE: 4110 Bonus ------- Aligned with FarCom 300 Cogmind --------- Core Integrity 0/550 Matter 300/300 Energy 325/325 System Corruption 0% Temperature Cool (87) Movement Hovering (112) Ox1 Location -8/Materials Parts ------- > --- POWER (2) -------- Improved Ion Engine Light Nuclear Core > --- PROPULSION (3) --- Improved Hover Unit Improved Hover Unit Improved Hover Unit > --- UTILITY (4) ------ Small Storage Unit Visual Processing Unit Improved Sensor Array Improved Signal Interpreter > --- WEAPON (2) ------- Beam Rifle Ion Cannon > --- INVENTORY (8) ---- Hover Unit Improved Heat Sink Structural Scanner Trap Scanner Improved Terrain Scanner Advanced Targeting Computer Reactive Plating Datajack Peak State ------------ > --- POWER ------------ Light Nuclear Core Micro Nuclear Core > --- PROPULSION ------- Aluminum Leg Carbon-fiber Leg Wheel > --- UTILITY ---------- Small Storage Unit Improved Sensor Array Improved Signal Interpreter Hardened Medium Armor Plating > --- WEAPON ----------- Gauss Rifle Makeshift Sword > --- INVENTORY -------- Light Deuterium Engine Heat Sink Improved Heat Sink Structural Scanner Visual Processing Unit Improved Terrain Scanner Improved Targeting Computer Datajack [Rating: 31] Favorites ----------- Power Ion Engine Engine Ion Engine Power Core Light Nuclear Core Propulsion Improved Hover Unit Treads Improved Treads Leg Aluminum Leg Wheel Wheel Hover Unit Improved Hover Unit Utility Small Storage Unit Device ECM Suite Storage Small Storage Unit Processor Signal Interpreter Protection Hardened Medium Armor Plating Weapon Small Laser Energy Gun Small Laser Energy Cannon Ion Cannon Ballistic Gun Heavy Assault Rifle Launcher EMP Blaster Slashing Weapon Makeshift Sword Special Melee Weapon Datajack Build | -11 -10 -10 -10 -9 -8 ------- Run | Yrd Mat Min Exi Min Mat Slots Evolved 4 | . . . . . 4 Power 1 | . . . . . 1 Propulsion 1 | . . . . . 1 Utility 2 | . . . . . 2 Weapon . | . . . . . . Parts Attached 59 | 7 14 . . . 38 Power 14 | 1 1 . . . 12 Engine 8 | 1 1 . . . 6 Core 6 | . . . . . 6 Reactor . | . . . . . . Propulsion 17 | 3 5 . . . 9 Treads 2 | 1 1 . . . . Leg 3 | . . . . . 3 Wheel 3 | 2 . . . . 1 Hover 9 | . 4 . . . 5 Flight . | . . . . . . Utility 13 | 1 3 . . . 9 Device 6 | . 1 . . . 5 Storage 1 | 1 . . . . . Processor 4 | . 1 . . . 3 Hackware . | . . . . . . Protection 2 | . 1 . . . 1 Artifact . | . . . . . . Weapon 15 | 2 5 . . . 8 Energy Gun 6 | 2 3 . . . 1 Energy Cannon 1 | . . . . . 1 Ballistic Gun 2 | . . . . . 2 Ballistic Cannon . | . . . . . . Launcher 3 | . 2 . . . 1 Special Weapon . | . . . . . . Impact Weapon . | . . . . . . Slashing Weapon 2 | . . . . . 2 Piercing Weapon . | . . . . . . Special Melee Weapon 1 | . . . . . 1 Unidentified Prototypes . | . . . . . . Parts Lost 29 | . 4 . . . 25 Power 9 | . 1 . . . 8 Propulsion 8 | . 2 . . . 6 Utility 6 | . 1 . . . 5 Weapon 6 | . . . . . 6 Highest Loss Streak 15 | . 2 . . . 15 To Critical Strikes . | . . . . . . Average Slot Usage (%) 92 | . 93 100 100 100 87 Engine 10 | . 14 14 14 14 7 Core 5 | . . . . . 9 Leg 1 | . . . . . 2 Hover 19 | . 18 28 28 28 14 Device 7 | . 4 . . . 11 Storage 11 | . 14 14 14 14 9 Processor 11 | . 3 14 14 14 12 Protection 1 | . 1 . . . 1 Energy Gun 16 | . 20 28 28 28 10 Energy Cannon 1 | . . . . . 2 Slashing Weapon 1 | . . . . . 2 Naked Turns . | . . . . . . Heaviest Build 31 | 10 17 13 13 13 31 Greatest Support 25 | 20 23 14 14 14 25 Greatest Overweight (x) 10 | 3 3 . . . 10 Average Overweight (x) . | . . . . . 1 Largest Inventory Capacity 8 | 8 8 8 8 8 8 Average Capacity 7 | 7 8 8 8 8 8 Most Carried 8 | 4 8 8 8 8 8 Average Carried 7 | 1 7 7 7 7 7 Final Capacity 8 | 8 8 8 8 8 8 Final Carried 8 | 4 8 8 8 8 8 Class Distribution -------------------- 50% | Mutant 22% | Infiltrator-Mutant 19% | Scavenger-Skirmisher 5% | Scavenger-Assassin Dominant Class ---------------- Mutant | -10/Materials Mutant | -10/Mines Mutant | -10/Exiles Mutant | -9/Mines Infiltrator-Mutant | -8/Materials Resources | -11 -10 -10 -10 -9 -8 ----------- Run | Yrd Mat Min Exi Min Mat Matter Collected 930 | 222 181 . . 15 512 Remotely . | . . . . . . Salvage Created 1294 | . 510 . . . 784 Parts 86 | . 26 . . . 60 Haulers Intercepted . | . . . . . . Recyclers Shooed 1 | . 1 . . . . Parts Field Recycled . | . . . . . . Retrieved Matter . | . . . . . . Parts Self-Destructed . | . . . . . . Prevented . | . . . . . . Kills | -11 -10 -10 -10 -9 -8 ------- Run | Yrd Mat Min Exi Min Mat Combat Hostiles Destroyed 26 | . 11 . . . 15 Melee 8 | . . . . . 8 Guns 12 | . 8 . . . 4 Cannons 2 | . . . . . 2 AOE 2 | . 2 . . . . Classes Destroyed 10 | . 2 . . . 8 Worker 1 | . . . . . 1 Builder 2 | . 1 . . . 1 Tunneler 1 | . . . . . 1 Operator 1 | . . . . . 1 Watcher 2 | . . . . . 2 Swarmer 1 | . . . . . 1 Grunt 19 | . 11 . . . 8 Duelist 1 | . . . . . 1 Sentry 4 | . . . . . 4 Hunter 1 | . . . . . 1 Best Kill Streak 5 | . 5 . . . 4 Combat Bots Only 4 | . 4 . . . 4 Max Kills in Single Turn 2 | . 2 . . . 2 Gunslinging . | . . . . . . Exploded 1 | . 1 . . . . Melee 1 | . . . . . 1 Uniques/NPCs Destroyed . | . . . . . . Combat | -11 -10 -10 -10 -9 -8 -------- Run | Yrd Mat Min Exi Min Mat Hostile Shots Fired 312 | . 68 . . . 244 Missed 84 | . 13 . . . 71 Damage Taken 3235 | . 686 . . . 2549 Core 765 | . 208 . . . 557 Absorbed by Shields . | . . . . . . Core Remaining (%) 58 | 100 . . . 16 . Volleys Fired 87 | . 43 . . . 44 Largest 2 | . 2 . . . 2 Hottest 116 | . 90 . . . 116 Shots Fired 129 | . 59 . . . 70 Gun 114 | . 57 . . . 57 Cannon 7 | . . . . . 7 Launcher 8 | . 2 . . . 6 Special . | . . . . . . Kinetic 18 | . . . . . 18 Thermal 103 | . 57 . . . 46 Explosive 6 | . . . . . 6 Electromagnetic 2 | . 2 . . . . Robot Hit Streak 18 | . 18 . . . 9 Robot Miss Streak 3 | . 3 . . . 3 Penetration Max 1 | . . . . . 1 Secondary Targets 1 | . 1 . . . . Max Gunslinging Chain 1 | . 1 . . . . Shots Hit Robots 114 | . 45 . . . 69 Core Hits 53 | . 22 . . . 31 Critical Kills . | . . . . . . Critical Parts Destroyed 1 | . . . . . 1 Critical Strikes 6 | . 3 . . . 3 Burn 5 | . 3 . . . 2 Destroy 1 | . . . . . 1 Melee Attacks 35 | . . . . . 35 Impact . | . . . . . . Slashing 35 | . . . . . 35 Piercing . | . . . . . . Sneak Attacks 2 | . . . . . 2 Combat Hostiles . | . . . . . . Follow-up Attacks . | . . . . . . Damage Inflicted 2559 | . 614 . . . 1945 Guns 1053 | . 516 . . . 537 Cannons 141 | . . . . . 141 Explosions 334 | . 98 . . . 236 Melee 1023 | . . . . . 1023 Ramming 8 | . . . . . 8 Kinetic 251 | . . . . . 251 Thermal 943 | . 516 . . . 427 Explosive 236 | . . . . . 236 Electromagnetic 98 | . 98 . . . . Impact . | . . . . . . Slashing 1023 | . . . . . 1023 Piercing . | . . . . . . Highest Corruption 1 | . 1 1 1 1 . Average Corruption 1 | . 1 1 1 1 . Corruption Purged . | . . . . . . Corruption Blocked . | . . . . . . Effects 5 | . 2 1 2 . . Matter Fused 3 | . 1 1 1 . . Heat Flow Errors 1 | . 1 . . . . Data Loss (minor) 1 | . . . 1 . . Overload Shots . | . . . . . . Overflow Damage . | . . . . . . Projectiles . | . . . . . . Explosions . | . . . . . . Melee . | . . . . . . Knockbacks . | . . . . . . Impact . | . . . . . . Kinetic . | . . . . . . Secondary . | . . . . . . Self-Inflicted Damage 26 | . . . . . 26 Shots 1 | . . . . . 1 Rammed 4 | . . . . . 4 Targets Rammed 4 | . . . . . 4 Kicked . | . . . . . . Crushed . | . . . . . . Highest Temperature 568 | . 531 . . . 568 Average Temperature 173 | . 177 . . . 169 Received Heat Transfer 1698 | . 366 . . . 1332 Effects 24 | . 7 . . . 17 Shutdowns 7 | . 2 . . . 5 Energy Bleed 4 | . 2 . . . 2 Interference 2 | . 1 . . . 1 Matter Decay 5 | . . . . . 5 Short Circuit 3 | . 1 . . . 2 Damage (minor) 2 | . . . . . 2 Damage (core) 1 | . 1 . . . . Siege Activations . | . . . . . . Robots Corrupted . | . . . . . . Combat Hostiles . | . . . . . . Parts Fried 1 | . 1 . . . . Impact Corruptions . | . . . . . . Robots Melted 1 | . 1 . . . . Combat Hostiles 1 | . 1 . . . . Parts Melted 1 | . 1 . . . . Heat Transferred 2591 | . 1503 . . . 1088 Parts Sabotaged . | . . . . . . Parts Stolen . | . . . . . . Parts Stripped . | . . . . . . Power Chain Reactions 1 | . 1 . . . . Alert | -11 -10 -10 -10 -9 -8 ------- Run | Yrd Mat Min Exi Min Mat Peak Influence 312 | . 312 121 . . 112 Initial 121 | . . 121 . . . Average 41 | . 121 121 . . 33 Maximum Alert Level 1 | . 1 . . . . Low Security (%) 94 | 100 63 100 . 100 100 Level 1 5 | . 36 . . . . Level 2 . | . . . . . . Level 3 . | . . . . . . Level 4 . | . . . . . . Level 5 . | . . . . . . High Security . | . . . . . . Max Security . | . . . . . . Squads Dispatched 6 | . 3 . . . 3 Investigation 4 | . 2 . . . 2 Extermination . | . . . . . . Reinforcement 2 | . 1 . . . 1 Assault . | . . . . . . Garrison . | . . . . . . Intercept . | . . . . . . Searches Triggered . | . . . . . . Construction Impeded . | . . . . . . Haulers Reinforced . | . . . . . . Active Scanning Responses . | . . . . . . Cargo Convoy Interrupts . | . . . . . . Stealth | -11 -10 -10 -10 -9 -8 --------- Run | Yrd Mat Min Exi Min Mat Distress Signals 4 | . . . . . 4 Communications Jammed . | . . . . . . Distress Signals . | . . . . . . Times Spotted 44 | . 13 . . . 31 Peak Tracking Total 11 | . 3 . . . 11 Tactical Retreats 4 | . 1 . . . 3 Traps | -11 -10 -10 -10 -9 -8 ------- Run | Yrd Mat Min Exi Min Mat Traps Triggered 4 | . 2 . . . 2 Indirectly 1 | . 1 . . . . Trap Hack Attempts . | . . . . . . Triggered . | . . . . . . Disarmed . | . . . . . . Reprogrammed . | . . . . . . Reused . | . . . . . . Traps Extracted . | . . . . . . Installed . | . . . . . . Triggered . | . . . . . . Machines | -11 -10 -10 -10 -9 -8 ---------- Run | Yrd Mat Min Exi Min Mat Machines Disabled 2 | . . . . . 2 Max in Single Turn 1 | . . . . . 1 Machines Repaired . | . . . . . . Machines Dismantled . | . . . . . . Machines Sabotaged . | . . . . . . Overloaded Fab Kills . | . . . . . . Hacking | -11 -10 -10 -10 -9 -8 --------- Run | Yrd Mat Min Exi Min Mat Machines Accessed 13 | . 5 . 5 . 3 Terminals 5 | . 3 . . . 2 Fabricators . | . . . . . . Repair Stations 1 | . 1 . . . . Recycling Units 1 | . 1 . . . . Scanalyzers 1 | . . . . . 1 Garrison Access . | . . . . . . Total Hacks 76 | . 10 . 50 . 16 Successful 66 | . 4 . 50 . 12 Failed 10 | . 6 . . . 4 Catastrophic 1 | . 1 . . . . Database Lockouts . | . . . . . . Manual 8 | . 2 . 3 . 3 Terminals 13 | . 6 . . . 7 Fabricators . | . . . . . . Repair Stations 2 | . 2 . . . . Recycling Units 2 | . 2 . . . . Scanalyzers 9 | . . . . . 9 Garrison Access . | . . . . . . Terminal Hacks 57 | . 3 . 50 . 4 Record 49 | . . . 49 . . Robot Analysis 1 | . . . . . 1 Branch Access Points 1 | . 1 . . . . Locate Traps 1 | . . . . . 1 Hauler Manifests 1 | . 1 . . . . Zone Layout 3 | . 1 . . . 2 Derelict Proto ID Bank 1 | . . . 1 . . Fabricator Hacks . | . . . . . . Repair Station Hacks 1 | . 1 . . . . Scan Component 1 | . 1 . . . . Recycling Unit Hacks . | . . . . . . Scanalyzer 8 | . . . . . 8 Insert Component 4 | . . . . . 4 Analyze 4 | . . . . . 4 Garrison Access Hacks . | . . . . . . Unauthorized Hacks . | . . . . . . Terminals . | . . . . . . Fabricators . | . . . . . . Repair Stations . | . . . . . . Recycling Units . | . . . . . . Scanalyzers . | . . . . . . Garrison Access . | . . . . . . Data Cores Recovered . | . . . . . . Used . | . . . . . . Hacking Detections 5 | . 4 . . . 1 Full Trace Events 1 | . 1 . . . . Feedback Events . | . . . . . . Feedback Blocked . | . . . . . . Robot Schematics Acquired . | . . . . . . Robots Built . | . . . . . . Authchips . | . . . . . . Time . | . . . . . . Total Robot Build Rating . | . . . . . . Part Schematics Acquired 3 | . . . . . 3 Parts Built . | . . . . . . Authchips . | . . . . . . Time . | . . . . . . Total Part Build Rating . | . . . . . . Parts Repaired . | . . . . . . Time . | . . . . . . Parts Recycled . | . . . . . . Recycled Matter . | . . . . . . Retrieved Matter . | . . . . . . Retrieved Components . | . . . . . . Parts Scanalyzed 3 | . . . . . 3 Part Schematics Acquired 3 | . . . . . 3 Parts Damaged . | . . . . . . Bothacking | -11 -10 -10 -10 -9 -8 ------------ Run | Yrd Mat Min Exi Min Mat Used RIF Installer . | . . . . . . Robots Hacked . | . . . . . . Non-combat . | . . . . . . Combat . | . . . . . . Robot Hacks Applied . | . . . . . . Relay Couplers Released . | . . . . . . Fabnet Peak Effective % . | . . . . . . Robots Rewired . | . . . . . . Allies Hacked . | . . . . . . Hacks Repelled . | . . . . . . Allies | -11 -10 -10 -10 -9 -8 -------- Run | Yrd Mat Min Exi Min Mat Total Allies . | . . . . . . Largest Group . | . . . . . . Highest-Rated Group . | . . . . . . Highest-Rated Ally . | . . . . . . Total Orders . | . . . . . . Ally Attacks . | . . . . . . Total Damage . | . . . . . . Kills . | . . . . . . Allies Corrupted . | . . . . . . Allies Melted . | . . . . . . Intel | -11 -10 -10 -10 -9 -8 ------- Run | Yrd Mat Min Exi Min Mat Robot Analysis Total 1 | . . . . . 1 Derelict Logs Recovered 2 | . . . . 2 . Drone Launches . | . . . . . . Drone Recoveries . | . . . . . . Exploration | -11 -10 -10 -10 -9 -8 ------------- Run | Yrd Mat Min Exi Min Mat Turns Passed 3117 | 65 383 45 451 413 1760 Spaces Moved 2261 | 48 245 73 798 449 648 Core 38 | 17 6 . . . 15 Treads 2 | 1 1 . . . . Legs 126 | . . . . . 126 Wheels 48 | 30 18 . . . . Hover 2047 | . 220 73 798 449 507 Flight . | . . . . . . Fastest Speed 50 | 50 56 56 56 56 56 Average Speed 83 | 107 94 56 56 56 133 Slowest Speed 550 | 200 200 56 56 56 550 Overloaded Moves . | . . . . . . Propulsion Burnouts . | . . . . . . Robots Hopped . | . . . . . . Cave-ins Triggered . | . . . . . . Exploration Rate (%) 50 | 4 52 34 94 83 37 Regions Visited 5 Branch Regions 3 Pre-discovered Areas 2 | . . . 1 1 . Known Exits Taken 4 | . 1 1 1 1 . Unknown Exits Taken 1 | 1 . . . . . Scrap Searched 5 | . . 1 . 4 . Spaces Dug . | . . . . . . Terrain Destroyed 46 | . 4 . . . 42 Melee . | . . . . . . Projectile . | . . . . . . AOE 46 | . 4 . . . 42 Terrain Rammed . | . . . . . . Walls Destroyed . | . . . . . . Machines Disabled . | . . . . . . Actions | -11 -10 -10 -10 -9 -8 --------- Run | Yrd Mat Min Exi Min Mat Total 3301 | 57 334 78 803 612 1417 Wait 795 | . 18 . . 156 621 Move 2256 | 47 244 72 797 448 648 Hop . | . . . . . . Pick Up 42 | 3 10 3 3 4 19 Fast Attach 25 | 6 4 . . . 15 Attach 18 | . 3 . . . 15 Detach . | . . . . . . Swap 16 | 1 7 . . . 8 Drop 23 | . 5 3 3 4 8 Fire 87 | . 43 . . . 44 Melee 35 | . . . . . 35 Ram 4 | . . . . . 4 Kick . | . . . . . . Crush . | . . . . . . Escape Stasis . | . . . . . . Rewire . | . . . . . . Trap . | . . . . . . Miscellaneous . | . . . . . . Route ------- -11/Scrapyard -10/Materials (discovered 2 exits: *Min x2) -10/Mines -10/Exiles (discovered 2 exits: *Min x2) -9/Mines -8/Materials (discovered 1 exit: Fac) History --------- Turn | Location | Event 5 | -11/Scrapyard | Discovered new exit (range 16) 66 | -11/Scrapyard | Entered Materials 229 | -10/Materials | Core integrity fell below 50% 269 | -10/Materials | Discovered new exit (range 17) 328 | -10/Materials | Build established: Mutant 356 | -10/Materials | Identified exit to Mines 390 | -10/Materials | Core integrity fell below 20% 449 | -10/Materials | Entered Mines 492 | -10/Mines | Deemed a non-threat by the Exiles lab entrance 492 | -10/Mines | Discovered new exit (range 5) 494 | -10/Mines | Identified exit to Exiles 494 | -10/Mines | Entered Exiles 505 | -10/Exiles | Discovered new exit (range 14) 515 | -10/Exiles | Met 8R-AWN 523 | -10/Exiles | Met EX-HEX 555 | -10/Exiles | Met EX-DEC 566 | -10/Exiles | Learned location of Zion (-7) 594 | -10/Exiles | Discovered new exit (range 14) 600 | -10/Exiles | Identified exit to Mines 641 | -10/Exiles | Met EX-BIN 651 | -10/Exiles | Aligned with FarCom system 652 | -10/Exiles | Given EX-Vault access code 679 | -10/Exiles | Opened EX-Vault 682 | -10/Exiles | Found Prototype Device 685 | -10/Exiles | Found Prototype Device 686 | -10/Exiles | Identified Cloak of Protection 686 | -10/Exiles | Identified Trap Reconfigurator 699 | -10/Exiles | Warned to stay clear of 0b10 Research branches 735 | -10/Exiles | Visited The Gauntlet 945 | -10/Exiles | Left Exiles lab with Cloak of Protection 945 | -10/Exiles | Entered Mines 1008 | -9/Mines | Received a Rocket Launcher from a helpful Derelict 1148 | -9/Mines | Identified exit to Materials 1152 | -9/Mines | A weapon hastily lodged in a ceiling crevice suddenly fell to the ground 1216 | -9/Mines | Learned 4 Materials zone layouts 1329 | -9/Mines | Learned location of Storage (-9) 1358 | -9/Mines | Entered Materials 1358 | -8/Materials | Evolved 4 slots: Power x1, Propulsion x1, Utility x2 1359 | -8/Materials | Identified exit to Factory 1647 | -8/Materials | Build established: Infiltrator-Mutant 2111 | -8/Materials | Lost 8 parts (2p2n1u3w) 2458 | -8/Materials | Core integrity fell below 50% 2511 | -8/Materials | Core integrity fell below 20% 2550 | -8/Materials | Lost 15 parts (5p4n3u3w) 2809 | -8/Materials | Build established: Scavenger-Skirmisher 3118 | -8/Materials | Destroyed by G-47 Trooper with Particle Gun Last Messages --------------- Scanning Imp. Heat Sink... Ready to analyze. >>Scanalyze Scanning: Imp. Heat Sink... Schematic downloaded. >>Insert(Hover Unit) Scanning Hover Unit... Ready to analyze. >>Scanalyze Scanning: Hover Unit... Schematic downloaded. 03089_ Connecting with Terminal... >>Layout(Zone) Retrieving Zone 6L layout... Downloaded map data. 03094_ Triggered Alarm Trap. 03094_ An alarm sounds. 03094_ ALERT: Alarm triggered, dispatching investigation squad. 03101_ Slammed into R-06 Scavenger. Map ----- +----------------------------------------------------+ | ????????????????????????????+ #???????# # | | ????????????????????????????# #???????# # | | ????????????????????????????# #???????####+##### | | ???????# #?????############## ######### | | ??????## ################### % % | | ??##### ######## | | ?? #??????########## | | ??##### % #???????????????? | | ??######+##### ###### #???????????????? | | ?? # #?##########???????????????? | | ??"" """ """ # === #?# "" #???????????????? | | ??"" """ """ # === %### ""S #???????????????? | | ??"" """ """ # === k # "" #???????????????? | | ?? # + #???????????????? | | ?? # # #???????????????? | | ??##################+##k# """ ! #???????????????? | | ??# ##?# # # """ #???????????????? | | ??# """ Y#?# " ] !# + """ #???????????????? | | ??# """ #### T # # #???????????????? | | ??# """ #?# " !! # ##########???????????????? | | ??/ #?## !! #%#??# #???????????????????? | | ??# #??#! = # #??# #???????????????????? | | ??# "Y" #??########+#########????????????????? | | ??# """ #?????# #????????????????? | | ??###########?????# #????????????????? | | ??????????????????# @ #????????????????? | | ??????????????????# #????????????????? | | ??????????????????# #????????????????? | | ??????????????????# #????????????????? | | ??????????????????#######g#######????????????????? | | ???????????????######### #?????????????????????? | | ???????????????# ## #?????????????????????? | | ???????????????# """ + g #?????????????????????? | | ???????????????# """ ##g #?????????????######### | | ???????????????????????? ###########???# | | ???????????????????????? ## #???# | | ???????????????????????? ## #???# [ | | ???????????????????????? # """ #???# """ | | ??????????????????????? r# """""#???# """ [[ | | ??????????????????????? T + """""#???# """ [! | | ??????????????????????? # """""#???# !! | | ??????????????????????? # """ #???# * = | | ???????????????????????# ## #???####=#### | | ???????????????????????? ## #??????###??? | | ???????????????????????? ###########???????????? | | ???????????????????????? #?????????????????????? | | ???????????????????????? #?????????????????????? | | ???????????????????????? < #?????????????????????? | | ???????????????????????? #?????????????????????? | | ????????????????????????####?????????????????????? | +----------------------------------------------------+ Best States ------------- Heat Dissipation 41 Energy Generation 24 Energy Capacity 325 Matter Stores 300 Matter Capacity 300 Sight Range 18 Robot Scan Range 15 Terrain Scan Density 10 ECM Strength 1 Cloak Strength 5 Armor Coverage 225 Evasion (%) 53 Targeting Accuracy 6 Recoil Reduction 1 Item Schematics ----------------- Datajack | -8/Materials | Scanalyzed Imp. Heat Sink | -8/Materials | Scanalyzed Hover Unit | -8/Materials | Scanalyzed Robot Schematics ------------------ None Fabricated ------------ Nothing Alien Tech Used ----------------- None Achievements -------------- I Spy It's Just You Librarian Please Form A Line Tourist Challenges ------------ None Game ------ Seed GrenadeTiamatRailgun Manual? 0 Play Time 01:04:30 Cumulative 34.8 hours Start 2024.04.11 @ 12:47:56 End 2024.04.11 @ 13:56:50 Sessions 1 Manual Loads 0 Difficulty Rogue Special Mode None Game No. 47 Rogue 47 Adventurer 0 Explorer 0 Win Type - Total 0 Types 0/0/0/0/0/0/0/0/0 Lore% 17 Gallery% 28 Achievement% 8 Wizard Run 0 Options --------- Layout 1 ASCII 0 Keyboard 0 Movement Numpad Keybinds 0 Fullscreen 1 Font 24/Smallcaps Map View 50x35 Zoom Use 0% Tactical HUD 1 Map Filters NONE Filters NONE Steam 1 RUN: 02254784-91e2-4b9c-8021-c8dce2e6dd71